bitfinex-derivatives/quotes_BTCF0:USTF0_20250814
["timestamp","ask_amount","ask_price","bid_price","bid_amount"]
[1755200694040,0.90169043,118320.0,118310.0,1.2532759]
[1755200694344,1.25853576,118320.0,118310.0,1.2532759]
[1755200696645,1.16039043,118320.0,118310.0,1.2532759]
[1755200696844,1.96437087,118320.0,118310.0,1.2532759]
[1755200698649,1.51768799,118320.0,118310.0,1.2532759]
[1755200700247,2.23658555,118320.0,118310.0,0.0190058]
[1755200700443,2.23658555,118320.0,118310.0,0.002]
[1755200700638,2.29737405,118320.0,118310.0,0.79056]
[1755200701038,2.29657405,118320.0,118310.0,0.79056]
[1755200701443,1.93927649,118320.0,118310.0,0.79056]
[1755200701843,1.93927649,118320.0,118310.0,0.8750345]
[1755200701844,2.29657405,118320.0,118310.0,0.8750345]
[1755200702040,2.29657405,118320.0,118310.0,0.79056]
[1755200703252,2.23578555,118320.0,118310.0,0.79056]
[1755200703654,2.23578555,118320.0,118310.0,0.8750345]
[1755200704750,1.87848799,118320.0,118310.0,0.8750345]
[1755200705856,1.87848799,118320.0,118310.0,0.79056]
[1755200706354,1.87848799,118320.0,118310.0,0.8750345]
[1755200707358,1.87848799,118320.0,118310.0,0.79056]
[1755200707854,1.87848799,118320.0,118310.0,0.8750345]
[1755200708160,1.87848799,118320.0,118310.0,0.79056]
[1755200714356,1.51768799,118320.0,118310.0,0.8750332]
[1755200714560,1.87848799,118320.0,118310.0,0.8750332]
[1755200714759,1.51768799,118320.0,118310.0,0.8750332]
[1755200714971,1.87848799,118320.0,118310.0,0.79056]
[1755200715353,1.87848799,118320.0,118310.0,0.8750332]
[1755200715960,1.51768799,118320.0,118310.0,0.8750332]
[1755200716362,1.87848799,118320.0,118310.0,0.79056]
[1755200716662,1.87848799,118320.0,118310.0,0.8750333]
[1755200717755,1.87848799,118320.0,118310.0,0.79056]
[1755200718155,1.51768799,118320.0,118310.0,0.8750332]
[1755200718361,1.87848799,118320.0,118310.0,0.8750332]
[1755200718755,2.32515407,118320.0,118310.0,0.8750332]
[1755200719154,2.32515407,118320.0,118310.0,0.79056]
[1755200721465,2.32515407,118320.0,118310.0,0.8750333]
[1755200721659,1.96435407,118320.0,118310.0,0.8750333]
[1755200722069,2.32515407,118320.0,118310.0,0.8750333]
[1755200726169,1.96435407,118320.0,118310.0,0.8750333]
[1755200728673,1.02641043,118320.0,118310.0,1.63781512]
[1755200728871,1.55939225,118320.0,118310.0,1.63781512]
[1755200729774,1.55939225,118320.0,118310.0,1.27701512]
[1755200729983,1.55939225,118320.0,118310.0,1.63781512]
[1755200732576,1.55939225,118320.0,118310.0,1.27701512]
[1755200732781,1.55939225,118320.0,118310.0,1.63781512]
[1755200732971,1.55939225,118320.0,118310.0,0.8750333]
[1755200733479,2.32217407,118320.0,118310.0,0.8735933]
[1755200733875,1.96137407,118320.0,118310.0,0.8735933]
[1755200734780,2.32217407,118320.0,118310.0,0.8735933]
[1755200735582,1.96137407,118320.0,118310.0,0.8735933]
[1755200735880,2.32217407,118320.0,118310.0,0.8735933]
[1755200736075,2.32217407,118320.0,118310.0,0.0864733]
[1755200736275,2.32217407,118320.0,118310.0,0.8734733]
[1755200736476,1.96137407,118320.0,118310.0,0.8734733]
[1755200736679,1.51471415,118320.0,118310.0,0.8734733]
[1755200737081,1.15741043,118320.0,118310.0,0.8734733]
[1755200737380,1.51471415,118320.0,118310.0,0.8734733]
[1755200737783,1.57550265,118320.0,118310.0,0.8734733]
[1755200738183,1.51471415,118320.0,118310.0,0.8734733]
[1755200738374,1.51471415,118320.0,118310.0,1.2342733]
[1755200739377,1.15741043,118320.0,118310.0,0.4472733]
[1755200739578,1.15741043,118320.0,118310.0,1.2341533]
[1755200739779,1.21823488,118320.0,118310.0,1.2341533]
[1755200740270,1.07086737,118320.0,118310.0,1.2341533]
[1755200740476,1.07086737,118320.0,118310.0,1.59225702]
[1755200740477,0.38301768,118320.0,118310.0,1.59225702]
[1755200742289,0.27695323,118320.0,118310.0,1.96129702]
[1755200743982,0.21704063,118320.0,118310.0,1.96129702]
[1755200744183,0.06082445,118340.0,118320.0,0.1689227]
[1755200744488,0.06082445,118340.0,118330.0,1.94996332]
[1755200744787,0.06082445,118340.0,118330.0,1.9670031]
[1755200744788,0.10819445,118340.0,118330.0,1.9670031]
[1755200745485,0.11019445,118340.0,118330.0,1.9670031]
[1755200745685,0.22758445,118340.0,118330.0,0.82309938]
[1755200745882,0.35858445,118340.0,118330.0,1.60969938]
[1755200746078,0.35758445,118340.0,118330.0,1.60969938]
[1755200746278,0.35858445,118340.0,118330.0,1.60969938]
[1755200748385,0.29776,118340.0,118330.0,1.6755976]
[1755200752792,0.29776,118340.0,118330.0,2.03290132]
[1755200753893,0.29776,118340.0,118330.0,1.6755976]
[1755200754992,0.29776,118340.0,118330.0,1.9670031]
[1755200755586,0.29776,118340.0,118330.0,1.96704872]
[1755200756094,0.31617488,118340.0,118330.0,1.96704872]
[1755200757296,0.33847488,118340.0,118330.0,1.96704872]
[1755200759082,0.33847488,118340.0,118330.0,1.96700266]
[1755200759282,0.33847488,118340.0,118330.0,1.60969894]
[1755200759501,0.33847488,118340.0,118330.0,1.96700266]
[1755200761496,0.33847488,118340.0,118330.0,1.60969894]
[1755200762093,0.7810316,118340.0,118330.0,0.82309894]
[1755200762299,0.79985569,118340.0,118330.0,1.60877894]
[1755200762498,1.29985569,118340.0,118330.0,0.82309894]
[1755200762899,1.29985569,118340.0,118330.0,1.60877894]
[1755200763293,1.21540269,118340.0,118330.0,1.60877894]
[1755200763500,1.29985579,118340.0,118330.0,0.82309894]
[1755200763798,1.29985579,118340.0,118330.0,0.37783934]
[1755200763997,1.29985579,118340.0,118330.0,1.24793954]
[1755200766300,1.66065579,118340.0,118330.0,0.80267934]
[1755200766490,0.0844604,118330.0,118320.0,1.3379729]
[1755200766695,1.123159,118330.0,118320.0,2.0390664]
[1755200767200,1.623159,118330.0,118320.0,2.0390664]
[1755200768201,1.882659,118330.0,118320.0,1.16904]
[1755200768500,1.882659,118330.0,118320.0,2.0391075]
[1755200768711,1.52455528,118330.0,118320.0,2.0391075]
[1755200769002,1.881859,118330.0,118320.0,2.0391075]
[1755200771704,1.881859,118330.0,118320.0,1.95464]
[1755200772102,1.881859,118330.0,118320.0,1.2535081]
[1755200772306,1.881859,118330.0,118320.0,2.0390281]
[1755200774301,1.881859,118330.0,118320.0,1.95456]
[1755200775611,0.0844685,118320.0,118310.0,0.41505]
[1755200775905,0.3866556,118310.0,118300.0,0.51388764]
[1755200776105,1.2623742,118310.0,118300.0,0.93844764]
[1755200776303,1.6231742,118310.0,118300.0,0.80257764]
[1755200776799,0.3866629,118300.0,118290.0,0.08689]
[1755200776996,0.38667,118290.0,118280.0,1.753003]
[1755200777201,1.24397372,118290.0,118280.0,2.584243]
[1755200777507,1.24397372,118290.0,118280.0,2.00853]
[1755200777701,1.60477372,118290.0,118280.0,1.95428]
[1755200777910,1.62329062,118290.0,118280.0,1.95428]
[1755200778811,1.62329062,118290.0,118280.0,2.0960271]
[1755200779010,1.87319062,118290.0,118280.0,2.01153]
[1755200779413,1.87319062,118290.0,118280.0,2.00853]
[1755200779707,1.88164048,118290.0,118280.0,1.95428]
[1755200781209,1.88164048,118290.0,118280.0,2.00716]
[1755200781613,1.94769601,118290.0,118280.0,1.95428]
[1755200784714,2.30499973,118290.0,118280.0,1.16896]
[1755200785015,1.94769601,118290.0,118280.0,1.95428]
[1755200785407,0.3456445,118270.0,118260.0,0.4453116]
[1755200785608,0.73340822,118270.0,118260.0,1.3571716]
[1755200785918,0.75208805,118270.0,118260.0,1.4023416]
[1755200786215,1.25208805,118270.0,118260.0,1.4023416]
[1755200786717,1.61288805,118270.0,118260.0,0.95703]
[1755200787022,1.6315957,118270.0,118260.0,0.78932]
[1755200787218,1.8814957,118270.0,118260.0,0.004]
[1755200787408,0.1244216,118260.0,118250.0,0.05245]
[1755200787613,1.09421532,118260.0,118250.0,0.78528]
[1755200787912,0.0845187,118250.0,118240.0,1.3835778]
[1755200788114,0.73342242,118250.0,118240.0,2.1688178]
[1755200788511,0.73342242,118250.0,118240.0,2.2212678]
[1755200788715,1.14890372,118250.0,118240.0,2.2212678]
[1755200789616,1.23342242,118250.0,118240.0,2.2252678]
[1755200790216,1.59422242,118250.0,118240.0,2.1437422]
[1755200790411,1.59422242,118250.0,118240.0,1.3585022]
[1755200790711,1.59422242,118250.0,118240.0,2.1437422]
[1755200791104,1.84412242,118250.0,118240.0,2.1437422]
[1755200791913,1.84412242,118250.0,118240.0,2.1438222]
[1755200793717,0.161103,118230.0,118220.0,0.36612421]
[1755200793922,0.80047251,118230.0,118220.0,1.14298045]
[1755200794120,1.30047251,118230.0,118220.0,1.14298045]
[1755200794315,1.30047251,118230.0,118220.0,0.35770045]
[1755200794618,1.30047251,118230.0,118220.0,1.14290045]
[1755200795013,1.30047251,118230.0,118220.0,1.14590045]
[1755200795414,1.19306879,118230.0,118220.0,1.10073045]
[1755200795710,1.19306879,118230.0,118220.0,1.14590045]
[1755200795916,1.55037251,118230.0,118220.0,1.14590045]
[1755200796716,1.46583951,118230.0,118220.0,1.50670045]
[1755200797713,0.81693579,118230.0,118220.0,1.50670045]
[1755200798431,0.86375579,118230.0,118220.0,1.50670045]
[1755200798822,1.38926951,118230.0,118220.0,1.50670045]
[1755200799022,1.47380251,118230.0,118220.0,1.50670045]
[1755200799215,1.47380251,118230.0,118220.0,1.14590045]
[1755200800220,1.38926951,118230.0,118220.0,1.14590045]
[1755200802525,0.81693579,118230.0,118220.0,1.50670045]
[1755200802724,0.90366579,118230.0,118220.0,1.50670045]
[1755200803027,1.55037331,118230.0,118220.0,1.14590045]
[1755200803616,0.68838179,118230.0,118220.0,2.18880217]
[1755200803819,0.04682,118270.0,118260.0,0.0845123]
[1755200804020,0.04682,118270.0,118260.0,1.2305123]
[1755200804225,0.06640571,118270.0,118260.0,1.2305123]
[1755200804418,0.01958571,118270.0,118260.0,1.58781602]
[1755200804618,0.06640571,118270.0,118260.0,1.2305123]
[1755200804819,0.06082445,118310.0,118290.0,0.0844909]
[1755200805051,0.06067164,118320.0,118310.0,0.2534194]
[1755200805224,0.01882409,118340.0,118310.0,0.2534194]
[1755200805225,0.075926,118330.0,118310.0,0.6142185]
[1755200805431,0.51768762,118340.0,118320.0,1.3190565]
[1755200805729,0.17512,118340.0,118330.0,0.4452624]
[1755200805929,0.53242372,118340.0,118330.0,0.4452624]
[1755200806124,0.53242372,118340.0,118330.0,0.4372624]
[1755200806724,0.17512,118340.0,118330.0,0.4372624]
[1755200806926,0.17512,118340.0,118330.0,0.4452624]
[1755200807132,0.075926,118350.0,118330.0,0.6141829]
[1755200807321,0.04682,118350.0,118340.0,1.2344152]
[1755200809230,0.04982,118350.0,118340.0,1.2344152]
[1755200809417,0.55205772,118350.0,118340.0,1.2344152]
[1755200809617,0.68035772,118350.0,118340.0,1.2344152]
[1755200809829,0.75628372,118350.0,118340.0,1.2344152]
[1755200810035,0.87276372,118350.0,118340.0,1.2344152]
[1755200810216,0.79683772,118350.0,118340.0,1.2344152]
[1755200810523,0.87276372,118350.0,118340.0,1.16592184]
[1755200810715,0.370526,118350.0,118340.0,1.16592184]
[1755200810916,0.263216,118350.0,118340.0,1.16592184]
[1755200811232,0.078926,118350.0,118340.0,1.16592184]
[1755200811821,0.003,118350.0,118340.0,1.16592184]
[1755200812731,0.04982,118350.0,118340.0,1.16592184]
[1755200813119,0.04682,118350.0,118340.0,1.16592184]
[1755200813320,0.04782,118350.0,118340.0,1.16592184]
[1755200814032,0.04782,118350.0,118340.0,1.17734184]
[1755200814826,0.123746,118350.0,118340.0,1.17734184]
[1755200815021,0.070506,118360.0,118350.0,0.0844483]
[1755200815225,0.10627358,118370.0,118350.0,0.0844483]
[1755200815226,0.10627358,118370.0,118350.0,1.28616232]
[1755200815531,0.04716,118380.0,118370.0,0.084434]
[1755200815740,0.19884319,118380.0,118370.0,0.36776874]
[1755200816030,0.30501029,118380.0,118370.0,0.36776874]
[1755200816535,0.04716,118380.0,118370.0,0.36776874]
[1755200816925,0.06473709,118380.0,118370.0,0.36776874]
[1755200818132,0.15116389,118380.0,118370.0,0.36776874]
[1755200818435,0.40726389,118380.0,118370.0,0.36776874]
[1755200818730,0.51343099,118380.0,118370.0,0.36776874]
[1755200818932,0.51643099,118380.0,118370.0,0.36776874]
[1755200820330,0.43200419,118380.0,118370.0,0.36776874]
[1755200820537,0.43200419,118380.0,118370.0,0.29928992]
[1755200820831,0.51641953,118380.0,118370.0,0.29928992]
[1755200821535,0.17589263,118380.0,118370.0,0.29928992]
[1755200821736,0.06972553,118380.0,118370.0,0.29928992]
[1755200822423,0.15415233,118380.0,118370.0,0.29928992]
[1755200822623,0.27787553,118380.0,118370.0,0.29928992]
[1755200822823,0.36230233,118380.0,118370.0,0.29928992]
[1755200823139,0.32582553,118380.0,118370.0,0.29928992]
[1755200823434,0.41025233,118380.0,118370.0,0.29928992]
[1755200823640,0.32582553,118380.0,118370.0,0.29928992]
[1755200824133,0.40155596,118380.0,118370.0,0.29928992]
[1755200825030,0.98822048,118380.0,118370.0,0.21485592]
[1755200825326,0.98822048,118380.0,118360.0,1.4050391]
[1755200825327,0.97370597,118380.0,118360.0,1.4050391]
[1755200825529,0.88983162,118370.0,118360.0,1.15172]
[1755200825724,0.387601,118360.0,118350.0,0.3608]
[1755200825926,1.00005255,118360.0,118350.0,1.2368082]
[1755200826127,0.92431803,118360.0,118350.0,1.2368082]
[1755200826735,0.92431803,118360.0,118350.0,0.8760082]
[1755200826932,0.92431803,118360.0,118350.0,0.79156]
[1755200827138,0.3876152,118340.0,118330.0,0.6141869]
[1755200827436,0.46579179,118340.0,118330.0,1.4057069]
[1755200827836,0.63113659,118340.0,118330.0,1.4057069]
[1755200828424,0.57052553,118340.0,118330.0,1.4077069]
[1755200828739,0.39116005,118340.0,118330.0,1.4077069]
[1755200830042,0.31542553,118340.0,118330.0,1.4077069]
[1755200830736,0.31542553,118340.0,118330.0,1.47365226]
[1755200831639,0.64726005,118340.0,118330.0,1.47365226]
[1755200833126,0.57152553,118340.0,118330.0,1.47365226]
[1755200834734,0.38730553,118340.0,118330.0,1.47365226]
[1755200834940,0.30244531,118340.0,118330.0,2.14569798]
[1755200835129,0.30244531,118340.0,118330.0,2.34569798]
[1755200835130,0.01798063,118340.0,118330.0,2.34569798]
[1755200835327,0.06074,118340.0,118330.0,2.34569798]
[1755200835532,0.07573452,118350.0,118340.0,0.0844565]
[1755200835836,0.07573452,118350.0,118340.0,1.11649421]
[1755200836033,0.21083452,118350.0,118340.0,1.11649421]
[1755200836531,0.0508408,118350.0,118340.0,1.11729421]
[1755200836731,0.0926483,118360.0,118340.0,1.57065921]
[1755200836927,0.0926483,118360.0,118350.0,1.73832712]
[1755200837340,0.0926483,118360.0,118350.0,1.90731112]
[1755200837841,0.0926483,118360.0,118350.0,1.73832712]
[1755200838038,0.0936483,118360.0,118350.0,1.73832712]
[1755200838546,0.0936483,118360.0,118350.0,1.66984923]
[1755200839232,0.0936483,118360.0,118350.0,1.83883323]
[1755200839534,0.01791378,118360.0,118350.0,1.83883323]
[1755200841532,0.01791378,118360.0,118350.0,1.33659551]
[1755200841737,0.01791378,118360.0,118350.0,1.83883323]
[1755200842137,0.06497378,118360.0,118350.0,1.33659551]
[1755200843141,0.001,118360.0,118350.0,1.83883323]
[1755200843340,0.07583452,118380.0,118360.0,0.0844426]
[1755200843647,0.0001,118380.0,118370.0,2.11707672]
[1755200843853,0.07583452,118380.0,118370.0,2.11707672]
[1755200844044,0.12289452,118380.0,118370.0,2.11908672]
[1755200844238,0.12289452,118380.0,118370.0,1.616849]
[1755200844841,0.12289452,118380.0,118370.0,1.618849]
[1755200845545,0.32035452,118380.0,118370.0,1.618849]
[1755200845743,0.38587452,118380.0,118370.0,1.618849]
[1755200846247,0.07583452,118380.0,118370.0,2.12108672]
[1755200846450,0.0001,118380.0,118370.0,2.12108672]
[1755200846648,0.13265443,118380.0,118370.0,2.29083872]
[1755200846956,0.04687,118410.0,118400.0,0.0844141]
[1755200847244,0.24436,118410.0,118400.0,1.2351341]
[1755200847440,0.30988,118410.0,118400.0,1.2351341]
[1755200847840,0.30988,118410.0,118400.0,1.20544014]
[1755200848042,0.31288,118410.0,118400.0,1.20544014]
[1755200848446,0.31488,118410.0,118400.0,1.20544014]
[1755200848643,0.31488,118410.0,118400.0,1.87658986]
[1755200848644,0.005,118410.0,118400.0,1.87658986]
[1755200850557,0.005,118410.0,118400.0,1.70767786]
[1755200850759,0.003,118410.0,118400.0,1.70967786]
[1755200851047,0.04687,118420.0,118400.0,1.08858146]
[1755200851256,0.30988,118420.0,118410.0,0.445207]
[1755200851452,0.30988,118420.0,118410.0,0.51287011]
[1755200852155,0.31088,118420.0,118410.0,0.51287011]
[1755200853548,0.31088,118420.0,118410.0,1.30243011]
[1755200853747,0.3952799,118420.0,118410.0,1.30243011]
[1755200854344,0.3960799,118420.0,118410.0,0.42846311]
[1755200854549,0.31088,118420.0,118410.0,1.30203011]
[1755200855256,0.41694205,118420.0,118410.0,1.30203011]
[1755200856058,0.31088,118420.0,118410.0,1.30203011]
[1755200857959,0.001,118420.0,118410.0,2.97242783]
[1755200858862,0.07674413,118420.0,118410.0,2.47019011]
[1755200859053,3e-08,118420.0,118410.0,3.14212383]
[1755200860963,0.17036873,118440.0,118430.0,0.0843927]
[1755200861166,0.06430668,118440.0,118430.0,2.08203057]
[1755200861460,0.17030415,118440.0,118430.0,1.57979285]
[1755200861655,0.15286747,118440.0,118430.0,2.08203057]
[1755200861855,0.04687,118440.0,118430.0,2.08203057]
[1755200862267,0.15290644,118440.0,118430.0,2.08203057]
[1755200862561,0.04467564,118440.0,118430.0,2.08203057]
[1755200862763,0.04687,118450.0,118430.0,2.33520417]
[1755200862960,0.04687,118450.0,118440.0,0.94742332]
[1755200863155,0.04687,118450.0,118440.0,0.4451856]
[1755200863857,0.46156319,118470.0,118460.0,0.0843713]
[1755200864158,0.30988,118470.0,118460.0,0.8965881]
[1755200864463,0.30988,118470.0,118460.0,1.2573881]
[1755200865056,0.30988,118470.0,118460.0,1.2367713]
[1755200865253,0.3942442,118470.0,118460.0,1.2367713]
[1755200865564,0.3972442,118470.0,118460.0,1.2367713]
[1755200865952,0.3980442,118470.0,118460.0,1.2367713]
[1755200866156,0.3980442,118470.0,118460.0,0.8759713]
[1755200866765,0.31288,118470.0,118460.0,1.73900902]
[1755200866958,0.003,118470.0,118460.0,2.90684902]
[1755200867266,0.003,118470.0,118460.0,2.90484902]
[1755200867663,0.007,118470.0,118460.0,2.90484902]
[1755200868164,1e-07,118470.0,118460.0,3.30479475]
[1755200868354,1e-07,118470.0,118460.0,3.32717019]
[1755200868557,0.18502,118510.0,118500.0,0.0843429]
[1755200868758,0.18502,118510.0,118500.0,1.5991829]
[1755200868960,0.1687448,118530.0,118520.0,0.0843286]
[1755200868961,0.26311,118530.0,118520.0,0.0843286]
[1755200869158,0.30998,118530.0,118520.0,1.2384086]
[1755200870455,0.30998,118530.0,118520.0,1.24670244]
[1755200870661,0.3943015,118530.0,118520.0,1.2384086]
[1755200871161,0.30998,118530.0,118520.0,1.2384086]
[1755200871868,0.3943015,118530.0,118520.0,1.2384086]
[1755200872067,0.30998,118530.0,118520.0,1.2384086]
[1755200872266,0.3943015,118530.0,118520.0,1.2384086]
[1755200872457,0.30998,118530.0,118520.0,1.2384086]
[1755200873568,0.3943015,118530.0,118520.0,1.2384086]
[1755200874069,0.3943015,118530.0,118520.0,1.2389086]
[1755200874461,0.3842186,118520.0,118510.0,1.6973009]
[1755200874667,1.24805632,118520.0,118510.0,1.16784]
[1755200874963,0.7450186,118520.0,118510.0,2.0440958]
[1755200875363,0.3842186,118520.0,118510.0,2.0445958]
[1755200875968,0.3842186,118520.0,118510.0,2.4053958]
[1755200875969,0.29989,118520.0,118510.0,2.4053958]
[1755200876971,0.29989,118520.0,118510.0,2.90763352]
[1755200877166,0.04714,118520.0,118510.0,2.90763352]
[1755200877559,0.25332,118520.0,118510.0,2.90763352]
[1755200877764,0.29989,118520.0,118510.0,1.6134758]
[1755200877963,0.3842186,118520.0,118510.0,2.4049958]
[1755200878371,0.3842186,118520.0,118510.0,2.0441958]
[1755200878568,0.3842186,118520.0,118510.0,2.0440358]
[1755200878875,0.3842186,118520.0,118510.0,2.0439558]
[1755200879275,0.29989,118520.0,118510.0,2.0439558]
[1755200879574,0.29989,118520.0,118510.0,2.4047558]
[1755200879764,0.3842185,118520.0,118510.0,2.4047558]
[1755200880479,0.3842185,118520.0,118510.0,2.4047158]
[1755200882077,0.0843357,118510.0,118500.0,0.3608]
[1755200882276,0.0843357,118510.0,118490.0,0.787567]
[1755200882277,0.3842329,118500.0,118490.0,0.787567]
[1755200882478,0.29989,118500.0,118490.0,1.578527]
[1755200882675,0.3842329,118500.0,118490.0,1.627567]
[1755200882871,0.3842329,118500.0,118490.0,1.578527]
[1755200883171,0.3842329,118500.0,118490.0,0.9781904]
[1755200883376,0.3842329,118500.0,118490.0,1.0825504]
[1755200883577,0.3842329,118500.0,118490.0,1.1320404]
[1755200883878,0.3842329,118500.0,118490.0,1.1330404]
[1755200884074,0.3842329,118500.0,118490.0,0.3417204]
[1755200884266,0.3842329,118500.0,118490.0,1.1329204]
[1755200884466,0.29989,118500.0,118490.0,1.4937204]
[1755200884671,0.3842329,118500.0,118490.0,1.1359204]
[1755200885379,0.3842329,118500.0,118490.0,0.9825504]
[1755200885580,0.88727062,118500.0,118490.0,0.022497]
[1755200885881,1.61685462,118500.0,118490.0,0.814177]
[1755200886181,1.63408669,118500.0,118490.0,0.004]
[1755200886475,1.63408669,118500.0,118490.0,0.79616]
[1755200886679,1.13184897,118500.0,118490.0,0.79616]
[1755200886877,1.63408669,118500.0,118490.0,0.79516]
[1755200887081,1.63508669,118500.0,118490.0,0.79516]
[1755200887672,1.64243978,118500.0,118490.0,0.79516]
[1755200887879,1.70992485,118500.0,118490.0,0.79516]
[1755200888180,1.70992485,118500.0,118490.0,0.79216]
[1755200889077,1.70992485,118500.0,118490.0,0.86304]
[1755200889078,0.99853404,118500.0,118490.0,0.86304]
[1755200889376,0.99853404,118500.0,118490.0,0.79216]
[1755200889670,1.50077176,118500.0,118490.0,0.79216]
[1755200890181,1.50906082,118500.0,118490.0,0.79216]
[1755200890879,0.25149,118490.0,118480.0,0.2395928]
[1755200891075,0.74504,118490.0,118480.0,1.0315528]
[1755200891271,1.41607772,118490.0,118480.0,0.79196]
[1755200892379,0.3842471,118480.0,118470.0,1.1672]
[1755200892575,1.24728482,118480.0,118470.0,1.95908]
[1755200892881,0.3842685,118450.0,118440.0,0.4451821]
[1755200893083,0.3842756,118440.0,118430.0,1.8522071]
[1755200893283,0.3842756,118440.0,118430.0,2.2828071]
[1755200893484,0.3842756,118440.0,118430.0,2.1984174]
[1755200893882,0.29989,118440.0,118430.0,2.6090574]
[1755200894084,0.2531479,118450.0,118440.0,0.2379156]
[1755200894274,0.3002879,118450.0,118440.0,0.6477556]
[1755200894578,0.5530379,118450.0,118440.0,0.6477556]
[1755200894779,0.5530379,118450.0,118440.0,0.6485556]
[1755200895180,0.5530379,118450.0,118440.0,0.6477556]
[1755200895376,0.9138379,118450.0,118440.0,0.2869556]
[1755200895583,0.2089076,118460.0,118440.0,0.3366021]
[1755200895776,0.665216,118470.0,118460.0,0.07088]
[1755200895981,0.665216,118470.0,118460.0,0.2869412]
[1755200895982,0.7450541,118470.0,118460.0,0.2869412]
[1755200896276,0.7450541,118470.0,118460.0,0.2379012]
[1755200896584,0.45026264,118480.0,118470.0,0.2042841]
[1755200896783,0.45026264,118480.0,118470.0,0.9964841]
[1755200897082,0.45026264,118480.0,118470.0,0.9954841]
[1755200897083,0.29464854,118480.0,118470.0,0.9954841]
[1755200897284,0.06443034,118480.0,118470.0,0.9954841]
[1755200897483,0.14878744,118480.0,118470.0,0.9954841]
[1755200897679,0.14878744,118480.0,118470.0,1.3562841]
[1755200897986,0.01729034,118480.0,118470.0,1.3570841]
[1755200898886,0.01929034,118480.0,118470.0,1.85932182]
[1755200899084,0.06437207,118500.0,118490.0,0.11506]
[1755200899278,0.06437207,118500.0,118490.0,1.33894]
[1755200899680,0.14871497,118500.0,118490.0,1.33894]
[1755200900078,0.06437207,118500.0,118490.0,1.33894]
[1755200900282,0.14871487,118500.0,118490.0,1.33894]
[1755200900480,0.6622192,118520.0,118510.0,0.0843357]
[1755200900783,0.6622192,118520.0,118510.0,0.8766957]
[1755200900980,0.80365692,118520.0,118500.0,0.576935]
[1755200901288,0.2170928,118500.0,118490.0,0.7025063]
[1755200901484,0.2170928,118500.0,118490.0,1.5415263]
[1755200901689,0.2170928,118500.0,118490.0,1.5445263]
[1755200901891,0.1555928,118500.0,118490.0,1.5445263]
[1755200902084,0.1555928,118500.0,118490.0,1.1837263]
[1755200902275,0.5778928,118500.0,118490.0,0.08767]
[1755200902597,1.12727052,118500.0,118490.0,0.79388]
[1755200902779,1.12727052,118500.0,118490.0,0.79356]
[1755200903286,1.12727052,118500.0,118490.0,0.87791]
[1755200903479,1.12727052,118500.0,118490.0,0.79356]
[1755200903678,1.12727052,118500.0,118490.0,0.002]
[1755200903880,1.12727052,118500.0,118490.0,0.79624]
[1755200904281,0.6250328,118500.0,118490.0,0.87959]
[1755200904681,0.6250328,118500.0,118490.0,0.87759]
[1755200904892,0.6250328,118500.0,118490.0,0.79424]
[1755200905094,0.7480328,118500.0,118490.0,0.79424]
[1755200905585,0.7480328,118500.0,118490.0,0.87859]
[1755200906079,0.3872328,118500.0,118490.0,0.95502]
[1755200906381,0.46007597,118510.0,118500.0,0.07643]
[1755200906586,0.37573567,118510.0,118500.0,0.1607729]
[1755200906783,0.94746152,118530.0,118520.0,0.0843286]
[1755200906784,0.40604,118530.0,118520.0,0.0843286]
[1755200907095,0.6273215,118530.0,118520.0,0.9330986]
[1755200908993,0.6283215,118530.0,118520.0,0.9330986]
[1755200909190,0.0011,118530.0,118520.0,1.75080632]
[1755200909493,0.0011,118530.0,118520.0,1.2938986]
[1755200909681,0.0001,118530.0,118520.0,1.2938986]
[1755200909985,0.04524,118530.0,118520.0,1.31611404]
[1755200910191,0.04524,118530.0,118520.0,1.2937386]
[1755200910492,0.1295615,118530.0,118520.0,1.2937386]
[1755200910685,0.1295615,118530.0,118520.0,1.2936186]
[1755200910999,0.2011215,118530.0,118520.0,1.2936186]
[1755200911384,0.2665215,118530.0,118520.0,1.2936186]
[1755200912095,0.04524,118530.0,118520.0,1.2936186]
[1755200912293,0.0001,118530.0,118520.0,1.2936186]
[1755200914592,0.0844215,118530.0,118520.0,1.2936186]
[1755200914791,0.0001,118530.0,118520.0,1.2936186]
[1755200917093,0.2665215,118530.0,118520.0,1.2936186]
[1755200917290,0.3912415,118530.0,118520.0,1.2936186]
[1755200917490,0.30692,118530.0,118520.0,1.2936186]
[1755200918094,0.08712,118530.0,118520.0,1.2936186]
[1755200918300,0.04524,118530.0,118520.0,1.2936186]
[1755200918502,0.0001,118530.0,118520.0,0.5215586]
[1755200918799,0.1168,118530.0,118520.0,1.3229586]
[1755200918996,0.2011215,118530.0,118520.0,1.3229586]
[1755200919195,0.1168,118530.0,118520.0,1.3229586]
[1755200919888,0.2011215,118530.0,118520.0,1.3229586]
[1755200920491,0.1168,118530.0,118520.0,1.3229586]
[1755200920692,0.04524,118530.0,118520.0,1.3229586]
[1755200921097,0.0001,118530.0,118520.0,1.3229586]
[1755200924799,0.2090161,118570.0,118560.0,0.0842997]
[1755200924996,0.4754125,118570.0,118560.0,0.83058]
[1755200925201,1.33845022,118570.0,118560.0,0.9148797]
[1755200925502,0.1766897,118560.0,118550.0,0.2529065]
[1755200925703,0.89335742,118560.0,118550.0,1.0531465]
[1755200925903,1.25415742,118560.0,118550.0,0.80024]
[1755200926302,0.3911268,118550.0,118540.0,1.2513131]
[1755200926503,1.25416452,118550.0,118540.0,2.0515931]
[1755200926894,1.25416452,118550.0,118540.0,1.167]
[1755200927204,1.25416452,118550.0,118540.0,2.051474]
[1755200927704,0.7519268,118550.0,118540.0,2.051474]
[1755200927903,1.25416452,118550.0,118540.0,2.051474]
[1755200928106,1.25416452,118550.0,118540.0,2.052474]
[1755200928301,0.3911268,118550.0,118540.0,2.052474]
[1755200928500,0.7519268,118550.0,118540.0,2.052474]
[1755200928701,0.4451068,118550.0,118540.0,2.052474]
[1755200928909,0.7519268,118550.0,118540.0,2.098604]
[1755200929108,0.3911268,118550.0,118540.0,2.100604]
[1755200929806,1.25416452,118550.0,118540.0,1.97016]
[1755200933306,1.25416452,118550.0,118540.0,1.17]
[1755200933307,1.25496452,118550.0,118540.0,1.17]
[1755200933500,1.42367652,118550.0,118540.0,1.17]
[1755200933803,0.9214388,118550.0,118540.0,1.96916]
[1755200934003,1.42287652,118550.0,118540.0,1.96916]
[1755200934709,1.42287652,118550.0,118540.0,1.96716]
[1755200935502,1.42287652,118550.0,118540.0,1.96616]
[1755200936908,1.49185576,118550.0,118540.0,1.96616]
[1755200937296,1.25416452,118550.0,118540.0,2.0504737]
[1755200937496,1.25416452,118550.0,118540.0,2.0132]
[1755200937907,1.25416452,118550.0,118540.0,2.0975137]
[1755200938107,1.25416452,118550.0,118540.0,1.96616]
[1755200939203,1.31475134,118550.0,118540.0,0.79764]